[Event "WYCC 2018 O18"]
[Site "Halkidiki"]
[Date "2018.10.29"]
[Round "10"]
[White "Gonzalez Carrillo, Javier Omar"]
[Black "Petersson, Baldur Teodor"]
[Result "1-0"]
[ECO "B40"]
[WhiteElo "2031"]
[BlackElo "2195"]
[Annotator "NA"]
[PlyCount "43"]
[EventDate "2018.10.20"]
[EventType "swiss"]
[EventCountry "GRE"]
[SourceTitle "playchess.com"]
[Source "ChessBase"]
[SourceQuality "1"]
[TimeControl "40/5400+30:1800+30"]

1. e4 {[%emt 0:00:03]} c5 {[%emt 0:00:00]} 2. Nf3 {[%emt 0:00:06]} e6 {[%emt 0:00:00]} 3. b3 {[%emt 0:00:08]} b6 {[%emt 0:00:31]} 4. Bb2 {[%emt 0:00:13]} Bb7 {[%emt 0:00:07]} 5. Qe2 {[%emt 0:00:08]} Nf6 {[%emt 0:01:17]} 6. e5 {[%emt 0:01:14]} Nd5 {[%emt 0:00:24]} 7. g3 {[%emt 0:00:07]} Nc6 {[%emt 0:13:39]} 8. Bg2 {[%emt 0:00:08] LiveBook: 6 Games} Ndb4 {[%emt 0:18:35]} 9. Na3 {[%emt 0:00:55]} Nd4 {[%emt 0:01:43]} 10. Bxd4 {[%emt 0:03:14]} cxd4 {[%emt 0:01:15]} 11. O-O {[%emt 0:00:12]} Ba6 {[%emt 0:10:57]} 12. Nc4 {[%emt 0:09:25]} Nxc2 {[%emt 0:11:12]} 13. Rac1 {[%emt 0:00:45]} Nb4 {[%emt 0:03:32]} 14. Nxd4 $14 {[%emt 0:00:54]} Nxa2 {[%emt 0:01:48]} 15. Ra1 {[%emt 0:02:49]} Nb4 {[%emt 0:00:24]} 16. Bxa8 {[%emt 0:03:43]} Qxa8 {[%emt 0:00:07]} 17. Rfc1 {[%emt 0:18:57]} Qb7 {[%emt 0:13:01]} 18. Nc2 {[%emt 0:01:33]} Nc6 {[%emt 0:04:06]} 19. Rxa6 {[%emt 0:02:05]} b5 {[%emt 0:00:56]} 20. Rxc6 {[%emt 0:00:47]} Qxc6 {[%emt 0:00:18]} 21. N4e3 {[%emt 0:00:57]} a5 {[%emt 0:01:34]} 22. Ra1 {[%emt 0:03:21]} 1-0

[Event "WYCC 2018 O18"]
[Site "Halkidiki"]
[Date "2018.10.29"]
[Round "10"]
[White "Manu David Suthandram R"]
[Black "Carnicelli, Valerio"]
[Result "1-0"]
[ECO "C50"]
[WhiteElo "1970"]
[BlackElo "2299"]
[Annotator "NA"]
[PlyCount "85"]
[EventDate "2018.10.20"]
[EventType "swiss"]
[EventCountry "GRE"]
[SourceTitle "playchess.com"]
[Source "ChessBase"]
[SourceQuality "1"]
[TimeControl "40/5400+30:1800+30"]

1. e4 {[%emt 0:00:00]} e5 {[%emt 0:00:00]} 2. Nf3 {[%emt 0:00:04]} Nc6 {[%emt 0:00:00]} 3. Bc4 {[%emt 0:00:05]} Bc5 {[%emt 0:00:00]} 4. O-O {[%emt 0:00:05]} d6 {[%emt 0:00:00]} 5. h3 {[%emt 0:00:31]} h6 {[%emt 0:00:00]} 6. c3 {[%emt 0:01:17]} Qf6 {[%emt 0:00:00]} 7. b4 {[%emt 0:04:48]} Bb6 {[%emt 0:00:33]} 8. a4 {[%emt 0:04:02]} a5 {[%emt 0:04:12]} 9. b5 {[%emt 0:02:00]} Nce7 {[%emt 0:03:23]} 10. d4 {[%emt 0:00:55]} Ng6 {[%emt 0:09:47]} 11. Be3 {[%emt 0:02:35]} N8e7 {[%emt 0:00:24]} 12. Kh2 {[%emt 0:04:38]} O-O {[%emt 0:01:24]} 13. g3 {[%emt 0:04:30]} exd4 $11 {[%emt 0:08:17]} 14. Nxd4 {[%emt 0:08:51]} d5 {[%emt 0:09:31]} 15. exd5 {[%emt 0:11:08]} Ne5 {[%emt 0:03:44]} 16. Bb3 {[%emt 0:03:57]} Rd8 {[%emt 0:14:53]} 17. f4 {[%emt 0:03:44]} Nd7 {[%emt 0:00:08]} 18. Qf3 {[%emt 0:13:01]} Nc5 {[%emt 0:01:10]} 19. Bc4 {[%emt 0:00:06]} Bf5 {[%emt 0:12:18]} 20. Nd2 {[%emt 0:00:50]} Nc8 {[%emt 0:08:56]} 21. Nxf5 {[%emt 0:12:01]} Qxf5 {[%emt 0:00:10]} 22. g4 {[%emt 0:00:54]} Qd7 {[%emt 0:02:03]} 23. Bxc5 {[%emt 0:01:35]} Bxc5 {[%emt 0:00:05]} 24. Ne4 {[%emt 0:00:23]} Bf8 {[%emt 0:02:16]} 25. Rad1 {[%emt 0:00:33]} Re8 {[%emt 0:00:48]} 26. Bd3 {[%emt 0:00:37]} Nd6 {[%emt 0:00:55]} 27. Rde1 {[%emt 0:05:11]} Re7 {[%emt 0:06:39]} 28. Nc5 {[%emt 0:04:52]} Qe8 {[%emt 0:00:27]} 29. Qg3 {[%emt 0:00:18]} b6 {[%emt 0:06:12]} 30. Rxe7 {[%emt 0:00:58]} Qxe7 {[%emt 0:01:50]} 31. Re1 {[%emt 0:00:06]} Qd8 {[%emt 0:02:13]} 32. Nb3 {[%emt 0:00:05]} Be7 {[%emt 0:00:27]} 33. Qe3 {[%emt 0:00:47]} Bh4 {[%emt 0:00:10]} 34. Re2 {[%emt 0:00:12]} Bf6 {[%emt 0:00:16]} 35. c4 {[%emt 0:00:31]} Nb7 {[%emt 0:01:59]} 36. Bc2 {[%emt 0:02:20]} Qd6 {[%emt 0:00:20]} 37. Qe8+ {[%emt 0:00:55]} Qf8 {[%emt 0:00:17]} 38. Qc6 {[%emt 0:00:36]} Nc5 {[%emt 0:02:40]} 39. Nxc5 {[%emt 0:00:36]} bxc5 {[%emt 0:00:04]} 40. Qxc7 {[%emt 0:00:00]} Re8 {[%emt 0:00:00]} 41. Be4 {[%emt 0:12:27]} Be7 {[%emt 0:01:15]} 42. Qd7 {[%emt 0:02:06]} g6 {[%emt 0:01:07]} 43. Bf3 {[%emt 0:01:16]} 1-0

[Event "WYCC 2018 O18"]
[Site "Halkidiki"]
[Date "2018.10.30"]
[Round "11"]
[White "Martinez Fernandez, Adrian"]
[Black "Pobor, Danilo"]
[Result "0-1"]
[ECO "B89"]
[WhiteElo "2277"]
[BlackElo "1934"]
[Annotator "NA"]
[PlyCount "96"]
[EventDate "2018.10.20"]
[EventType "swiss"]
[EventCountry "GRE"]
[SourceTitle "playchess.com"]
[Source "ChessBase"]
[SourceQuality "1"]
[TimeControl "40/5400+30:1800+30"]

1. e4 {[%emt 0:00:00]} c5 {[%emt 0:00:00]} 2. Nf3 {[%emt 0:00:00]} Nc6 {[%emt 0:00:00]} 3. d4 {[%emt 0:00:00]} cxd4 {[%emt 0:00:00]} 4. Nxd4 {[%emt 0:00:00]} Nf6 {[%emt 0:00:00]} 5. Nc3 {[%emt 0:00:00]} d6 {[%emt 0:00:00]} 6. Bc4 {[%emt 0:00:04]} e6 {[%emt 0:00:00]} 7. Be3 {[%emt 0:00:07]} a6 {[%emt 0:00:01]} 8. Bb3 {[%emt 0:02:25]} Be7 {[%emt 0:00:42]} 9. Qe2 {[%emt 0:00:08]} Qc7 {[%emt 0:00:24]} 10. O-O-O {[%emt 0:00:15]} Na5 {[%emt 0:00:05]} 11. g4 {[%emt 0:03:18]} b5 {[%emt 0:02:10] B89: Sicilian: Velimirovic Attack} 12. g5 {[%emt 0:01:23]} Nxb3+ {[%emt 0:01:35]} 13. Nxb3 {[%emt 0:08:51]} (13. axb3 $5 {[%cal Rg5f6]} Nd7 14. b4 $11) 13... Nd7 {[%emt 0:04:41]} 14. h4 {[%emt 0:16:04]} b4 {[%emt 0:16:55]} 15. Nb1 {[%emt 0:00:09]} a5 {[%emt 0:05:58]} 16. h5 $146 {[%emt 0:05:40]} (16. c4 {might work better.}) ({Predecessor:} 16. f4 Bb7 17. Bf2 O-O 18. N1d2 Rfc8 19. Nf3 a4 20. Nbd4 a3 21. b3 Qc3 22. e5 Nc5 23. Be1 Nxb3+ {0-1 (23) Rodriguez Guerrero,E (2123)-Campos Moreno,J (2484) Linares 2000}) 16... Ba6 {[%emt 0:04:18]} 17. Qe1 {[%emt 0:09:08]} Rc8 {[%emt 0:01:56]} 18. Rd2 {[%emt 0:09:13]} Ne5 {[%emt 0:02:15]} 19. Nd4 {[%emt 0:01:27]} Nd3+ {[%emt 0:00:13]} 20. Rxd3 {[%emt 0:00:13]} Bxd3 {[%emt 0:00:18]} 21. Qd2 {[%emt 0:01:11]} Bxe4 {[%emt 0:01:22]} 22. f3 {[%emt 0:00:06]} Bd5 {[%emt 0:01:36]} 23. Rg1 {[%emt 0:00:17]} a4 {[%emt 0:06:19]} 24. Qxb4 {[%emt 0:02:21]} O-O {[%emt 0:03:27]} 25. Nc3 {[%emt 0:01:52]} Rb8 {[%emt 0:01:25]} 26. Nxd5 {[%emt 0:00:31]} exd5 {[%emt 0:00:48]} 27. Qxa4 {[%emt 0:03:33]} Rfc8 {[%emt 0:01:55]} 28. Nf5 {[%emt 0:07:33]} Rb4 {[%emt 0:04:21]} 29. Nxe7+ {[%emt 0:00:17]} Qxe7 {[%emt 0:00:09]} 30. Qa3 {[%emt 0:02:06]} Rbc4 {[%emt 0:01:06]} 31. Kb1 {[%emt 0:02:12]} d4 {[%emt 0:00:59]} 32. Bc1 {[%emt 0:05:11]} Rxc2 {[%emt 0:02:59]} 33. Qd3 {[%emt 0:00:02]} Qc7 {[%emt 0:00:30]} 34. Bf4 {[%emt 0:00:25] [#]} Qb6 $1 {[%emt 0:00:24]} 35. Bc1 {[%emt 0:03:59]} d5 {[%emt 0:17:04]} 36. Re1 {[%emt 0:02:37]} Rh2 {[%emt 0:07:11]} 37. Bd2 {[%emt 0:07:57]} Rb8 {[%emt 0:01:46]} 38. b3 {[%emt 0:01:08]} Rxh5 {[%emt 0:01:06]} 39. f4 {[%emt 0:00:25]} Ra8 {[%emt 0:05:57]} 40. Qf3 {[%emt 0:00:00]} Rh2 {[%emt 0:00:00]} 41. Qxd5 {[%emt 0:03:06]} Qa7 {[%emt 0:02:49]} 42. Ba5 {[%emt 0:04:59]} Qa6 {[%emt 0:04:23]} 43. Qe4 {[%emt 0:04:37]} g6 {[%emt 0:02:24]} 44. b4 {[%emt 0:00:11]} Rb8 {[%emt 0:00:22]} 45. f5 {[%emt 0:22:43]} gxf5 {[%emt 0:04:20]} 46. Qxd4 {[%emt 0:04:13]} Qxa5 {[%emt 0:01:53]} 47. Re8+ {[%emt 0:00:51]} Rxe8 {[%emt 0:00:12]} 48. bxa5 {[%emt 0:00:04]} Re1+ {[%emt 0:00:22]} 0-1

[Event "WYCC 2018 O18"]
[Site "Halkidiki"]
[Date "2018.10.30"]
[Round "11"]
[White "Beukema, Jasper"]
[Black "Mitrabha, Guha"]
[Result "0-1"]
[ECO "E11"]
[WhiteElo "2256"]
[BlackElo "2352"]
[Annotator "NA RC"]
[PlyCount "62"]
[EventDate "2018.10.20"]
[EventType "swiss"]
[EventCountry "GRE"]
[SourceTitle "playchess.com"]
[Source "ChessBase"]
[SourceQuality "1"]
[TimeControl "40/5400+30:1800+30"]

1. d4 {[%emt 0:00:00]} Nf6 {[%emt 0:00:00]} 2. c4 {[%emt 0:00:00]} e6 {[%emt 0:00:00]} 3. Nf3 {[%emt 0:00:00]} Bb4+ {[%emt 0:00:00]} 4. Bd2 {[%emt 0:00:00]} a5 {[%emt 0:00:00]} 5. Qc2 {[%emt 0:01:44]} d5 {[%emt 0:03:13]} 6. a3 {[%emt 0:01:52] E11: Bogo-Indian} (6. g3 O-O 7. Bg2 b6 8. O-O Ba6 9. Ne5 Ra7 10. cxd5 {½-½ (10) Arutinian,D (2538)-Bernadskiy,V (2574) Tsaghkadzor 2017}) 6... Be7 {[%emt 0:02:05]} 7. Nc3 {[%emt 0:00:26]} O-O {[%emt 0:01:43]} 8. cxd5 {[%emt 0:03:24]} exd5 {[%emt 0:00:07]} 9. Bg5 {[%emt 0:00:06]} g6 $146 {[%emt 0:03:43]} ({Predecessor:} 9... h6 10. Bf4 c6 11. e3 Nh5 12. Be5 Nd7 13. Bd3 Nxe5 14. dxe5 {½-½ (36) Perera Gonzalez,P (2249)-Dickl,E (2230) Santa Cruz de Tenerife 2002}) 10. e3 {[%emt 0:01:53]} Bf5 {[%emt 0:04:34]} 11. Qb3 {[%emt 0:02:11]} Nbd7 {[%emt 0:00:34]} 12. Bh6 {[%emt 0:01:29]} Re8 {[%emt 0:00:42]} 13. Nxd5 {[%emt 0:01:24]} Nxd5 {[%emt 0:02:18]} 14. Qxd5 {[%emt 0:01:04]} Be4 {[%emt 0:02:10]} 15. Qb3 {[%emt 0:02:51]} a4 {[%emt 0:01:38]} 16. Qc3 {[%emt 0:04:42]} c5 {[%emt 0:06:43]} 17. Be2 {[%emt 0:23:43]} cxd4 {[%emt 0:01:53]} 18. exd4 {[%emt 0:07:02]} Rc8 {[%emt 0:01:11]} 19. Qe3 {[%emt 0:00:07]} Bd6 {[%emt 0:05:31]} ({Black should play} 19... Bf5 $17 20. Ne5 Bd6) 20. Kf1 {[%emt 0:04:13]} Bf5 {[%emt 0:03:14]} 21. Qg5 $2 {[%emt 0:02:49]} (21. Ne5) 21... f6 {[%emt 0:01:49]} 22. Qh4 {[%emt 0:01:42]} Re4 {[%emt 0:00:18]} 23. g4 {[%emt 0:01:26]} Rxg4 {[%emt 0:00:21]} 24. Qh3 {[%emt 0:00:06]} Rc2 {[%emt 0:04:21]} 25. Be3 {[%emt 0:00:19]} Qb6 {[%emt 0:01:40]} 26. Ne1 {[%emt 0:03:43]} Rxe2 {[%emt 0:00:26]} 27. Qf3 {[%emt 0:00:27]} Rxb2 {[%emt 0:00:51]} 28. Qd5+ {[%emt 0:02:04]} Kg7 {[%emt 0:00:10]} 29. Qc4 {[%emt 0:00:47]} Qb5 $19 {[%emt 0:00:38]} 30. Qxb5 {[%emt 0:00:56]} Rxb5 {[%emt 0:00:02]} 31. f3 {[%emt 0:00:28]} Rh4 {[%emt 0:00:04]} 0-1

[Event "WYCC 2018 O18"]
[Site "Halkidiki"]
[Date "2018.10.30"]
[Round "11"]
[White "Ozates, Tuna"]
[Black "Olimjonov, Sarvarbek"]
[Result "1-0"]
[ECO "A45"]
[WhiteElo "2225"]
[BlackElo "2074"]
[Annotator "NA"]
[PlyCount "73"]
[EventDate "2018.10.20"]
[EventType "swiss"]
[EventCountry "GRE"]
[SourceTitle "playchess.com"]
[Source "ChessBase"]
[SourceQuality "1"]
[TimeControl "40/5400+30:1800+30"]

1. d4 {[%emt 0:00:00]} Nf6 {[%emt 0:00:00]} 2. Bg5 {[%emt 0:00:00]} c5 {[%emt 0:00:00]} 3. Nc3 {[%emt 0:00:00]} d5 {[%emt 0:03:27]} 4. Bxf6 {[%emt 0:00:00]} gxf6 {[%emt 0:00:30]} 5. e4 {[%emt 0:00:00]} dxe4 {[%emt 0:00:33]} 6. dxc5 {[%emt 0:00:00]} Qa5 {[%emt 0:00:20]} 7. Qh5 {[%emt 0:00:06] D01: Veresov Opening} (7. Bb5+ Bd7 8. a4 a6 9. Ra3 Nc6 10. Nge2 e6 11. b4 Qxb4 12. Rb3 Qa5 13. O-O axb5 14. Nxe4 Be7 15. axb5 {0-1 (33) Gareyev,T (2604)-Robson,R (2656) Saint Louis 2015}) 7... f5 {[%emt 0:07:06]} 8. O-O-O {[%emt 0:01:49]} Be6 $146 {[%emt 0:02:24]} ({Predecessor:} 8... Bg7 9. Bc4 e6 10. Nh3 O-O 11. g4 Nd7 12. gxf5 Nf6 13. Qh4 exf5 14. Rhg1 Ng4 {1-0 (22) Voloshin,L (2420)-Cempel,J (2270) Ostrava 1998}) 9. Bb5+ {[%emt 0:13:14]} Nc6 {[%emt 0:03:13]} 10. Nge2 {[%emt 0:05:35]} Bg7 {[%emt 0:07:35]} 11. g4 {[%emt 0:08:02]} f4 {[%emt 0:17:09]} 12. a3 {[%emt 0:11:13]} O-O {[%emt 0:18:07]} 13. Bxc6 {[%emt 0:04:58]} bxc6 {[%emt 0:00:35]} 14. Nd4 {[%emt 0:00:42]} Rac8 {[%emt 0:12:39]} 15. Rhe1 {[%emt 0:05:52]} Bd5 {[%emt 0:04:22]} 16. Nxd5 {[%emt 0:02:24]} cxd5 {[%emt 0:02:44]} 17. Nb3 {[%emt 0:00:05]} Qa6 {[%emt 0:01:36]} 18. Qxd5 {[%emt 0:01:25]} e3 {[%emt 0:02:46]} 19. fxe3 {[%emt 0:01:17]} fxe3 {[%emt 0:00:24]} 20. g5 {[%emt 0:00:21]} e2 {[%emt 0:02:30]} 21. Rd3 {[%emt 0:01:10]} Rfd8 {[%emt 0:05:05]} 22. Qxd8+ {[%emt 0:16:38]} Rxd8 {[%emt 0:00:04]} 23. Rxd8+ {[%emt 0:00:09]} Bf8 {[%emt 0:00:01]} 24. Rd3 {[%emt 0:01:46]} h6 {[%emt 0:02:01]} 25. gxh6 {[%emt 0:02:16]} Qxh6+ {[%emt 0:01:04]} 26. Kb1 {[%emt 0:00:29]} Qf4 {[%emt 0:02:10]} 27. Rd2 {[%emt 0:02:29]} Bg7 {[%emt 0:00:42]} 28. Rdxe2 {[%emt 0:00:18]} e5 {[%emt 0:00:02]} 29. Re4 {[%emt 0:00:57]} Qf2 {[%emt 0:00:36]} 30. c6 {[%emt 0:00:58]} Qb6 {[%emt 0:00:03]} 31. Rc4 {[%emt 0:00:30]} Qc7 {[%emt 0:00:02]} 32. Rd1 {[%emt 0:01:57]} f5 {[%emt 0:00:25]} 33. Rd7 {[%emt 0:01:48]} Qc8 {[%emt 0:00:04]} 34. c7 {[%emt 0:00:44]} Bf6 {[%emt 0:00:18]} 35. Rc6 {[%emt 0:00:23]} e4 {[%emt 0:02:31]} 36. Nc5 {[%emt 0:00:08]} Bh4 {[%emt 0:01:15]} 37. Rcd6 {[%emt 0:00:41]} 1-0

[Event "WYCC 2018 O18"]
[Site "Halkidiki"]
[Date "2018.10.30"]
[Round "11"]
[White "Tsomaia, Nikoloz"]
[Black "Burovic, Rijad"]
[Result "1/2-1/2"]
[ECO "C02"]
[WhiteElo "2201"]
[BlackElo "2380"]
[Annotator "NA RC"]
[PlyCount "118"]
[EventDate "2018.10.20"]
[EventType "swiss"]
[EventCountry "GRE"]
[SourceTitle "playchess.com"]
[Source "ChessBase"]
[SourceQuality "1"]
[TimeControl "40/5400+30:1800+30"]

1. e4 {[%emt 0:00:00]} e6 {[%emt 0:00:00]} 2. d4 {[%emt 0:00:00]} d5 {[%emt 0:00:00]} 3. e5 {[%emt 0:00:00]} c5 {[%emt 0:00:00]} 4. c3 {[%emt 0:00:00]} Nc6 {[%emt 0:00:08]} 5. Nf3 {[%emt 0:00:00]} Qb6 {[%emt 0:00:08]} 6. a3 {[%emt 0:00:05]} f6 {[%emt 0:00:16]} 7. Bd3 {[%emt 0:01:41]} fxe5 {[%emt 0:00:09] C02: French: Advance Variation} 8. dxe5 {[%emt 0:00:13]} c4 {[%emt 0:00:05]} 9. Bc2 {[%emt 0:00:17]} Nh6 {[%emt 0:00:27]} 10. O-O {[%emt 0:03:50]} Nf7 {[%emt 0:00:54]} (10... g6 11. b4 cxb3 12. Bxb3 Ng4 13. Bf4 Bc5 14. Bg3 O-O 15. Nbd2 {½-½ (59) Morozevich,A (2656)-Timofeev,A (2580) Sochi 2018}) 11. Qe2 {[%emt 0:07:18]} g6 {[%emt 0:02:47]} 12. Ra2 {[%emt 0:04:11]} Bg7 {[%emt 0:05:31]} 13. Bf4 {[%emt 0:04:03]} O-O {[%emt 0:01:46]} 14. g3 $146 {[%emt 0:19:08]} ({Predecessor:} 14. Nbd2 Qc7 15. Re1 {½-½ (64) Afek,Y (2362)-Murey,J (2463) St Quentin 1999}) 14... Qc7 {[%emt 0:21:54]} 15. Re1 $1 {[%emt 0:01:55]} b5 {[%emt 0:00:12]} 16. Nbd2 {[%emt 0:02:10]} Bd7 {[%emt 0:06:13]} 17. Kg2 {[%emt 0:02:00]} Nh6 {[%emt 0:04:48]} 18. Nf1 {[%emt 0:02:08]} Nf5 {[%emt 0:21:20]} 19. Bxf5 {[%emt 0:02:28]} Rxf5 {[%emt 0:04:55]} 20. Ne3 {[%emt 0:00:28] [#]} Rf7 {[%emt 0:01:06]} (20... Rxf4 $1 $17 {[%mdl 512]} 21. gxf4 Rf8) 21. Ng4 {[%emt 0:04:12]} Qb7 {[%emt 0:02:40]} 22. Bg5 {[%emt 0:17:15]} d4 {[%emt 0:09:49]} 23. Nf6+ {[%emt 0:00:05]} Bxf6 $1 {[%emt 0:01:27]} 24. exf6 {[%emt 0:00:53]} Ne7 {[%emt 0:01:57]} 25. Kg1 {[%emt 0:02:26]} d3 {[%emt 0:00:22]} 26. Qe3 {[%emt 0:05:12]} Nc6 {[%emt 0:08:22]} (26... Nd5 $17 27. Qe4 Bc6) 27. Raa1 {[%emt 0:03:26]} Re8 {[%emt 0:00:34]} 28. Qf4 {[%emt 0:02:17]} Qb8 {[%emt 0:02:33]} 29. Qh4 {[%emt 0:00:08]} e5 {[%emt 0:00:56]} 30. Bh6 {[%emt 0:00:31]} Bf5 {[%emt 0:01:53]} 31. Ng5 {[%emt 0:00:31]} Qc7 {[%emt 0:01:43]} 32. g4 {[%emt 0:01:10]} Be6 {[%emt 0:00:31]} 33. Bg7 {[%emt 0:00:47]} Rxg7 {[%emt 0:00:06]} 34. fxg7 {[%emt 0:00:03]} Qxg7 {[%emt 0:00:08]} 35. Nxe6 {[%emt 0:02:02]} Rxe6 {[%emt 0:00:06]} 36. a4 {[%emt 0:00:25]} b4 {[%emt 0:00:41]} 37. Re4 {[%emt 0:00:01]} Qd7 {[%emt 0:01:01]} 38. Qg5 {[%emt 0:01:11]} Qd5 {[%emt 0:00:40]} 39. Qe3 {[%emt 0:00:18]} a5 {[%emt 0:00:14]} 40. Rf1 {[%emt 0:00:00]} Rf6 {[%emt 0:00:00]} 41. h4 {[%emt 0:08:56]} Rf8 {[%emt 0:16:20]} 42. f3 {[%emt 0:02:34]} Rf6 {[%emt 0:00:48]} 43. Kg2 {[%emt 0:00:23]} Rf8 {[%emt 0:00:08]} 44. Rh1 {[%emt 0:03:24]} ({White should try} 44. Qb6 $16) 44... bxc3 {[%emt 0:04:09]} (44... Qf7 $1 $14) 45. bxc3 Rb8 {[#]} (45... Qf7 $16) 46. Qd2 $2 {[%emt 0:04:07]} (46. h5 $1 $18) 46... Nd8 $1 {[%emt 0:01:42]} 47. h5 {[%emt 0:00:22]} Nf7 $1 {[%emt 0:00:47]} 48. hxg6 {[%emt 0:00:02]} hxg6 {[%emt 0:00:01]} 49. Kg3 {[%emt 0:01:37]} Rb3 {[%emt 0:01:17]} 50. Rhe1 {[%emt 0:00:54]} Kg7 {[%emt 0:04:04]} 51. Rh1 {[%emt 0:02:10]} g5 {[%emt 0:00:43]} 52. Ree1 {[%emt 0:00:35]} Qd6 {[%emt 0:00:50]} 53. Re4 $1 {[%emt 0:01:16]} Qb6 {[%emt 0:02:44]} 54. Rh2 {[%emt 0:06:34]} Qg1+ {[%emt 0:01:04]} 55. Rg2 $1 {[%emt 0:00:02]} Qh1 {[%emt 0:00:38]} 56. Rh2 {[%emt 0:00:28]} Qg1+ {[%emt 0:00:23]} 57. Rg2 {[%emt 0:01:32]} Qh1 {[%emt 0:00:23]} 58. Rh2 {[%emt 0:00:33]} Qg1+ {[%emt 0:00:07]} 59. Rg2 $11 {[%emt 0:00:35]} Qh1 {[%emt 0:00:00]} 1/2-1/2

[Event "WYCC 2018 O18"]
[Site "Halkidiki"]
[Date "2018.10.30"]
[Round "11"]
[White "Pedoson, Georg Aleksander"]
[Black "Tifferet, Shaked"]
[Result "0-1"]
[ECO "D10"]
[WhiteElo "2162"]
[BlackElo "2254"]
[Annotator "NA"]
[PlyCount "100"]
[EventDate "2018.10.20"]
[EventType "swiss"]
[EventCountry "GRE"]
[SourceTitle "playchess.com"]
[Source "ChessBase"]
[SourceQuality "1"]
[TimeControl "40/5400+30:1800+30"]

1. d4 {[%emt 0:00:00]} d5 {[%emt 0:00:00]} 2. c4 {[%emt 0:00:00]} c6 {[%emt 0:00:00]} 3. Nc3 {[%emt 0:00:10]} Nf6 {[%emt 0:00:35]} 4. e3 {[%emt 0:00:30]} g6 {[%emt 0:00:18]} 5. Nf3 {[%emt 0:01:11]} Bg7 {[%emt 0:00:05]} 6. Bd3 {[%emt 0:00:47]} O-O {[%emt 0:00:16]} 7. O-O {[%emt 0:00:41]} a6 {[%emt 0:00:26]} 8. b3 {[%emt 0:04:17]} c5 {[%emt 0:04:02] D94: Grünfeld: 4 Nf3 Bg7 5 e3} 9. Bb2 {[%emt 0:03:42]} cxd4 {[%emt 0:01:35]} 10. exd4 {[%emt 0:00:09]} dxc4 {[%emt 0:25:33]} (10... Nc6 11. h3 dxc4 12. Bxc4 b5 13. Be2 Bb7 14. Qd2 Qd6 15. Rad1 Rfd8 16. Rfe1 {0-1 (58) Dubov,D (2614)-Gupta,A (2612) Moscow 2013}) 11. bxc4 {[%emt 0:02:47]} Bg4 {[%emt 0:00:29]} 12. d5 $146 {[%emt 0:01:30]} ({Predecessor:} 12. Be2 Nc6 13. d5 Bxf3 14. Bxf3 Ne5 15. Be2 Rc8 16. Qb3 Qc7 17. Rac1 Nxc4 18. d6 exd6 19. Nd5 Nxd5 20. Rxc4 Qa5 21. Rxc8 Rxc8 22. Qxb7 {½-½ (22) Brozhik,V (2189)-Karnaukh,A (2253) Kiev 2003}) 12... Nbd7 {[%emt 0:20:43]} 13. Re1 {[%emt 0:01:22]} e6 {[%emt 0:02:47]} 14. h3 {[%emt 0:01:10]} Bxf3 {[%emt 0:00:46]} 15. Qxf3 {[%emt 0:00:06]} exd5 {[%emt 0:01:12]} 16. cxd5 {[%emt 0:00:14]} Nc5 {[%emt 0:04:08]} 17. Bf1 {[%emt 0:00:18]} b5 {[%emt 0:03:07]} 18. Rad1 {[%emt 0:02:15]} Nfd7 {[%emt 0:04:59]} 19. a3 {[%emt 0:05:09]} Qf6 {[%emt 0:02:37]} 20. Qg3 {[%emt 0:01:04]} Qf5 {[%emt 0:01:45]} 21. Rd2 {[%emt 0:04:38]} Rfe8 {[%emt 0:02:03]} 22. Red1 {[%emt 0:00:34]} Be5 {[%emt 0:02:02]} 23. Qh4 {[%emt 0:00:28]} Qf4 {[%emt 0:06:57]} 24. Qxf4 {[%emt 0:00:21]} Bxf4 {[%emt 0:00:02]} 25. Rc2 {[%emt 0:00:37]} Bd6 {[%emt 0:00:42]} 26. Bc1 {[%emt 0:03:43]} Rac8 {[%emt 0:00:46]} 27. Re2 {[%emt 0:00:40]} Rxe2 {[%emt 0:00:55]} 28. Bxe2 {[%emt 0:00:47]} Nb3 {[%emt 0:00:44]} 29. Bb2 {[%emt 0:00:30]} Bxa3 {[%emt 0:02:58]} 30. Bxa3 {[%emt 0:00:12]} Rxc3 {[%emt 0:00:02]} 31. Bb4 {[%emt 0:00:31]} Rc1 {[%emt 0:01:16]} 32. Kf1 {[%emt 0:00:27]} Rxd1+ {[%emt 0:00:54]} 33. Bxd1 {[%emt 0:00:05]} Nbc5 {[%emt 0:00:48]} 34. Ke2 {[%emt 0:00:19]} Kf8 {[%emt 0:06:23]} 35. Ke3 {[%emt 0:00:34]} Ke8 {[%emt 0:00:25]} 36. Kd4 {[%emt 0:00:28]} Nb7 {[%emt 0:00:07]} 37. Be2 {[%emt 0:00:36]} Kd8 {[%emt 0:00:42]} 38. Bd2 {[%emt 0:00:15]} Kc7 $17 {[%emt 0:01:29]} 39. g4 {[%emt 0:00:11]} Kb6 {[%emt 0:00:55]} 40. f4 {[%emt 0:00:00]} a5 {[%emt 0:00:00]} 41. h4 {[%emt 0:01:09]} Nbc5 {[%emt 0:06:51]} 42. Bd1 {[%emt 0:00:31]} Nb7 {[%emt 0:03:58]} 43. h5 {[%emt 0:00:45]} Nd6 {[%emt 0:00:50]} 44. Bc2 {[%emt 0:00:07]} b4 {[%emt 0:02:03]} 45. hxg6 {[%emt 0:00:45]} hxg6 {[%emt 0:00:28]} 46. g5 {[%emt 0:00:14]} Nb5+ {[%emt 0:01:36]} 47. Ke4 {[%emt 0:00:07]} Kc5 {[%emt 0:01:13]} 48. Be3+ {[%emt 0:00:24]} Kd6 {[%emt 0:00:07]} 49. f5 {[%emt 0:00:54]} gxf5+ {[%emt 0:03:55]} 50. Kxf5 {[%emt 0:00:05]} Nc3 {[%emt 0:01:22]} 0-1